bitfinex-derivatives/quotes_SOLF0:USTF0_20240815
["timestamp","ask_amount","ask_price","bid_price","bid_amount"]
[1723728603545,41.51,144.49,144.4,41.51]
[1723728603739,41.51,144.49,144.38,47.31]
[1723728603935,6.10583222,144.5,144.44,0.04517318]
[1723728603936,41.51,144.47,144.44,0.04517318]
[1723728604144,5.8,144.46,144.44,0.04517318]
[1723728604333,3.462,144.42,144.38,3.4628]
[1723728604541,1.33183639,144.46,144.35,41.51]
[1723728604848,3.4611,144.46,144.42,3.4618]
[1723728605045,3.4611,144.46,144.4,41.51]
[1723728605243,8.3923,144.5,144.4,41.51]
[1723728605547,3.4603,144.49,144.42,41.51]
[1723728605746,0.04668688,144.46,144.44,0.05151406]
[1723728606245,5.8,144.53,144.45,41.51]
[1723728606441,3.4597,144.52,144.45,41.51]
[1723728606647,1.2351,144.56,144.47,41.51]
[1723728606840,1.2351,144.56,144.49,41.51]
[1723728607440,0.05209572,144.54,144.51,0.04560396]
[1723728607743,0.05209572,144.54,144.51,41.55560396]
[1723728607948,0.05209572,144.54,144.51,0.04560396]
[1723728608436,0.05209572,144.54,144.51,41.55560396]
[1723728608642,1.3196,144.61,144.51,41.55560396]
[1723728608841,1.2395,144.62,144.53,41.51]
[1723728609145,42.7857,144.67,144.56,41.51]
[1723728609744,1.2757,144.67,144.58,41.51]
[1723728610051,0.04529492,144.63,144.61,3.4572]
[1723728610353,0.04529492,144.63,144.6,0.0444627]
[1723728611640,3.4574,144.61,144.6,0.0444627]
[1723728612242,41.51,144.61,144.43,34.583]
[1723728612439,41.51,144.59,144.46,41.51]
[1723728612643,41.51,144.56,144.46,41.51]
[1723728612844,3.4598,144.52,144.44,42.8326]
[1723728613240,41.51,144.56,144.44,42.8326]
[1723728613446,41.51,144.54,144.44,1.3226]
[1723728613750,3.4606,144.48,144.42,41.51]
[1723728613953,0.04914268,144.49,144.47,0.04767662]
[1723728614747,3.50954268,144.49,144.47,0.04767662]
[1723728614949,0.04914268,144.49,144.4,49.82]
[1723728615249,0.04914268,144.49,144.47,0.04839721]
[1723728615548,3.4606,144.48,144.45,3.4611]
[1723728615747,0.05050126,144.49,144.43,49.82]
[1723728615948,0.05050126,144.49,144.48,3.4605]
[1723728616150,5.8,144.53,144.48,3.4605]
[1723728616451,0.04857269,144.5,144.47,0.04741592]
[1723728617448,0.04857269,144.5,144.49,3.4602]
[1723728617656,1.2469,144.58,144.48,49.82]
[1723728617849,1.2469,144.58,144.55,3.4586]
[1723728617850,3.4581,144.58,144.55,3.4586]
[1723728618055,7.0707,144.6,144.5,49.82]
[1723728618256,1.2707,144.6,144.52,49.82]
[1723728618757,2.4986,144.63,144.52,55.62]
[1723728619149,0.05153074,144.57,144.55,0.04767936]
[1723728619349,1.2469,144.63,144.55,0.04767936]
[1723728619553,3.4573,144.62,144.59,3.4578]
[1723728619953,3.4573,144.62,144.52,55.62]
[1723728620154,3.4573,144.62,144.59,3.4577]
[1723728620456,1.2334,144.65,144.57,49.82]
[1723728620650,0.05046467,144.62,144.59,0.04484785]
[1723728621046,53.24474754,144.67,144.58,1.3489]
[1723728621245,55.62,144.69,144.62,3.457]
[1723728621450,59.13258818,144.69,144.62,3.457]
[1723728621660,0.04903683,144.64,144.57,59.06065569]
[1723728622053,59.13258818,144.69,144.57,59.06065569]
[1723728622254,59.13258818,144.69,144.64,0.05273633]
[1723728622759,3.4563,144.66,144.64,0.05273633]
[1723728622953,0.04546844,144.68,144.64,0.05273633]
[1723728623360,3.4561,144.67,144.64,0.05273633]
[1723728623654,0.04546844,144.68,144.64,0.05273633]
[1723728625357,3.4561,144.67,144.64,0.05273633]
[1723728625558,0.04546844,144.68,144.64,0.05273633]
[1723728625753,0.04546844,144.68,144.65,3.4564]
[1723728625955,0.04546844,144.68,144.64,0.05273633]
[1723728626957,0.04546844,144.68,144.66,3.4561]
[1723728627757,0.04546844,144.68,144.64,0.05273633]
[1723728628757,49.82,144.67,144.64,0.05273633]
[1723728628962,49.82,144.65,144.55,5.78]
[1723728629363,3.4568,144.64,144.55,5.78]
[1723728629664,49.82,144.67,144.55,5.78]
[1723728629665,51.1557,144.67,144.55,5.78]
[1723728630655,0.04785409,144.62,144.59,3.4577]
[1723728630860,0.04785409,144.62,144.6,0.04508877]
[1723728631250,3.50515409,144.62,144.6,0.04508877]
[1723728631860,0.04785409,144.62,144.6,0.04508877]
[1723728632258,3.50505409,144.62,144.6,0.04508877]
[1723728632560,0.04785409,144.62,144.6,0.04508877]
[1723728632963,3.4574,144.61,144.6,0.04508877]
[1723728633664,1.2998,144.61,144.52,49.82]
[1723728634068,5.9520533,144.61,144.5,5.92]
[1723728634265,2.5393,144.61,144.5,5.92]
[1723728634461,2.5393,144.61,144.49,51.1679]
[1723728634462,49.82,144.6,144.48,1.3302]
[1723728634772,49.82,144.58,144.47,49.82]
[1723728635065,0.04661449,144.55,144.53,0.05179488]
[1723728635268,3.4593,144.54,144.53,0.05179488]
[1723728635670,3.47396085,144.56,144.44,49.82]
[1723728635856,5.92,144.57,144.44,49.82]
[1723728636060,0.04672619,144.55,144.52,0.04985144]
[1723728636462,3.4593,144.53,144.35,27.66]
[1723728636658,49.82,144.55,144.42,49.82]
[1723728637164,3.4601,144.5,144.46,3.4608]
[1723728637361,49.82,144.55,144.44,49.82]
[1723728637661,49.82,144.55,144.42,49.82]
[1723728638264,49.82,144.55,144.48,3.4604]
[1723728638569,3.51001318,144.51,144.48,0.04925577]
[1723728638769,0.05021318,144.51,144.48,0.04925577]
[1723728639963,3.4602,144.49,144.48,0.04925577]
[1723728640563,3.461,144.46,144.41,5.92]
[1723728640767,5.92,144.49,144.37,49.82]
[1723728640965,5.92,144.49,144.37,53.24123868]
[1723728641161,49.82,144.48,144.36,7.1612]
[1723728641566,49.82,144.48,144.39,3.4625]
[1723728641770,9.29833046,144.49,144.39,3.4625]
[1723728641965,10.42926643,144.57,144.45,49.82]
[1723728641966,1.2747,144.54,144.45,49.82]
[1723728642667,3.4599,144.51,144.45,49.82]
[1723728642965,1.2747,144.54,144.45,49.82]
[1723728643171,1.2747,144.54,144.43,3.39078768]
[1723728643172,1.2747,144.54,144.43,49.82]
[1723728643358,0.04408706,144.51,144.48,0.05116655]
[1723728643674,3.4601,144.5,144.48,0.05116655]
[1723728644365,3.4602,144.49,144.48,0.05116655]
[1723728644667,0.04408706,144.51,144.48,0.05116655]
[1723728645364,0.04408706,144.51,144.48,3.51156655]
[1723728645572,0.04408706,144.51,144.48,0.05116655]
[1723728645965,3.50398706,144.51,144.48,0.05116655]
[1723728646161,0.04408706,144.51,144.48,0.05116655]
[1723728646869,0.04408706,144.51,144.4,49.82]
[1723728647070,49.82,144.49,144.37,49.82]
[1723728647369,1.2722,144.48,144.36,7.1612]
[1723728647572,1.2722,144.48,144.37,49.82]
[1723728647762,1.2722,144.48,144.45,3.461]
[1723728647960,5.92,144.51,144.42,49.82]
[1723728648166,54.51836092,144.54,144.42,49.82]
[1723728648167,1.2722,144.53,144.42,49.82]
[1723728648372,1.2722,144.53,144.48,3.4603]
[1723728648373,3.4598,144.51,144.48,3.4603]
[1723728649064,3.4598,144.51,144.47,3.4606]
[1723728649260,3.4601,144.5,144.47,3.4606]
[1723728649463,0.04953463,144.51,144.45,49.82]
[1723728649770,0.04953463,144.51,144.5,3.46]
[1723728649974,1.3515,144.56,144.48,0.05075481]
[1723728650274,1.3515,144.56,144.51,3.4595]
[1723728650469,1.3515,144.56,144.47,53.20052858]
[1723728650470,0.04984283,144.52,144.47,53.20052858]
[1723728650667,0.04984283,144.52,144.51,3.4598]
[1723728650875,1.3515,144.56,144.51,0.05180729]
[1723728650876,4.8101,144.56,144.51,0.05180729]
[1723728651168,1.3515,144.56,144.51,0.05180729]
[1723728651368,0.05122681,144.53,144.51,0.05180729]
[1723728651572,3.51062681,144.53,144.51,0.05180729]
[1723728651773,0.05122681,144.53,144.51,0.05180729]
[1723728651973,3.4595,144.52,144.51,0.05180729]
[1723728652173,0.05122681,144.53,144.51,0.05180729]
[1723728652573,0.05122681,144.53,144.39,27.68]
[1723728652574,0.05122681,144.53,144.42,51.1378]
[1723728652779,0.05122681,144.53,144.42,49.82]
[1723728652780,5.97122681,144.53,144.42,49.82]
[1723728653370,49.82,144.52,144.4,49.82]
[1723728653872,0.04638171,144.47,144.45,0.05033257]
[1723728654174,3.4605,144.48,144.45,0.05033257]
[1723728654677,0.04789487,144.47,144.45,0.05033257]
[1723728655071,3.50869487,144.47,144.45,0.05033257]
[1723728655273,0.04789487,144.47,144.46,3.461]
[1723728656576,0.04789487,144.47,144.45,0.05033257]
[1723728657076,3.461,144.46,144.45,0.05033257]
[1723728657978,3.50869487,144.47,144.45,0.05033257]
[1723728658475,0.04789487,144.47,144.45,3.51153257]
[1723728658873,0.04789487,144.47,144.45,0.05033257]
[1723728659275,0.04789487,144.47,144.46,3.461]
[1723728660272,0.04789487,144.47,144.45,0.05033257]
[1723728660667,49.86789487,144.47,144.37,7.3991]
[1723728660872,49.86789487,144.47,144.28,3.50428685]
[1723728660873,49.82,144.45,144.33,2.5771]
[1723728661077,6.06,144.44,144.35,49.82]
[1723728661270,3.4618,144.43,144.39,3.4626]
[1723728661476,6.06,144.44,144.35,49.82]
[1723728661676,6.06,144.44,144.33,52.3971]
[1723728661982,6.06,144.44,144.3,55.9842]
[1723728662182,49.82,144.42,144.3,55.9842]
[1723728662387,1.37634124,144.41,144.38,0.05197966]
[1723728662584,7.43634124,144.41,144.38,0.05197966]
[1723728663185,1.3326,144.41,144.33,49.82]
[1723728663375,1.3326,144.41,144.31,49.82]
[1723728663572,49.82,144.39,144.38,0.05310126]
[1723728663776,49.82,144.39,144.31,3.4644]
[1723728664582,49.82,144.39,144.3,3.4647]
[1723728664778,3.4639,144.34,144.3,3.4647]
[1723728665084,3.4639,144.34,144.26,6.06]
[1723728665085,6.06,144.36,144.26,49.82]
[1723728665381,6.06,144.36,144.21,1.2571]
[1723728665382,57.1118,144.35,144.33,0.04416303]
[1723728665589,57.1118,144.35,144.24,3.4661]
[1723728665883,57.1118,144.35,144.23,49.82]
[1723728665884,3.4649,144.3,144.23,49.82]
[1723728666086,55.88,144.34,144.23,49.82]
[1723728666276,3.43206859,144.33,144.25,3.4658]
[1723728666474,4.72716859,144.33,144.25,3.4658]
[1723728666686,1.2951,144.33,144.23,49.82]
[1723728666981,1.2951,144.33,144.21,3.3821879]
[1723728666982,7.2918,144.35,144.25,49.82]
[1723728667182,1.2318,144.35,144.25,51.1576]
[1723728667486,0.04829965,144.3,144.28,0.02859159]
[1723728667872,0.04829965,144.3,144.28,3.49389159]
[1723728668280,0.04829965,144.3,144.29,3.465]
[1723728668481,6.06,144.37,144.28,0.02859159]
[1723728668778,51.0573,144.35,144.28,0.02859159]
[1723728669177,3.4648,144.3,144.28,0.02859159]
[1723728669483,6.11063869,144.31,144.22,3.48222156]
[1723728669682,0.05063869,144.31,144.21,49.82]
[1723728669885,0.05063869,144.31,144.22,1.3604]
[1723728670081,0.05063869,144.31,144.22,4.90360375]
[1723728670379,49.82,144.3,144.28,0.02859159]
[1723728670583,49.82,144.3,144.18,49.82]
[1723728670778,3.4658,144.26,144.18,49.82]
[1723728670975,6.06,144.27,144.21,3.4669]
[1723728671177,6.06,144.27,144.15,49.82]
[1723728671178,6.1094509,144.27,144.15,49.82]
[1723728671580,6.06,144.26,144.15,49.82]
[1723728672180,6.06,144.25,144.18,49.82]
[1723728672375,0.05202376,144.22,144.19,3.4674]
[1723728672581,0.05202376,144.22,144.18,49.82]
[1723728672781,6.06,144.27,144.18,49.82]
[1723728672976,3.4659,144.26,144.23,3.4664]
[1723728673587,0.05301131,144.26,144.24,3.4662]
[1723728673782,0.05301131,144.26,144.18,49.82]
[1723728674688,3.51881131,144.26,144.23,3.4663]
[1723728675283,0.05301131,144.26,144.22,3.4666]
[1723728675586,0.05301131,144.26,144.15,49.82]
[1723728675784,0.05301131,144.26,144.24,3.4661]
[1723728675983,0.05301131,144.26,144.18,49.82]
[1723728676389,3.4664,144.24,144.21,3.4668]
[1723728676584,7.408,144.27,144.21,3.4668]
[1723728676783,49.82,144.25,144.13,56.7577]
[1723728677088,49.82,144.25,144.12,4.79655142]
[1723728677089,49.82,144.23,144.12,4.79655142]
[1723728677284,6.06,144.22,144.1,4.68257362]
[1723728677495,49.82,144.2,144.06,55.88]
[1723728677684,2.6818,144.19,144.06,59.38308167]
[1723728677998,3.4686,144.15,144.12,3.469]
[1723728678192,6.10691728,144.17,144.06,59.38308167]
[1723728678382,3.4684,144.15,144.12,3.469]
[1723728678587,6.10691728,144.17,144.06,59.38308167]
[1723728678788,0.04691728,144.17,144.14,49.82]
[1723728679084,1.3328,144.25,144.16,49.82]
[1723728679289,1.3328,144.25,144.16,51.1177]
[1723728679492,3.4665,144.23,144.16,51.1177]
[1723728679696,4.87255145,144.25,144.16,1.2977]
[1723728679991,4.87255145,144.25,144.19,0.04816283]
[1723728679992,1.3328,144.25,144.19,0.04816283]
[1723728680198,49.82,144.24,144.19,0.04816283]
[1723728680491,3.4681,144.17,144.08,1.2977]
[1723728680886,55.88,144.19,144.08,1.2977]
[1723728681486,49.82,144.17,144.05,6.06]
[1723728681696,1.2654,144.16,144.07,49.82]
[1723728681893,1.2654,144.16,144.08,1.2676]
[1723728682193,0.04647884,144.15,144.09,49.82]
[1723728682595,0.04647884,144.15,144.09,53.53141003]
[1723728682984,0.04647884,144.15,144.14,3.4686]
[1723728683691,0.04647884,144.15,144.1,6.06]
[1723728684794,0.04647884,144.15,144.13,3.4688]
[1723728684990,0.04647884,144.15,144.1,6.06]
[1723728685392,0.04647884,144.15,144.14,3.4686]
[1723728686788,7.3254,144.23,144.14,49.82]
[1723728686987,2.5505,144.25,144.16,49.82]
[1723728687184,5.96281309,144.25,144.2,3.4672]
[1723728687388,2.5505,144.25,144.2,3.4672]
[1723728687989,3.4664,144.24,144.21,3.4669]
[1723728688390,0.05148842,144.24,144.21,0.04539545]
[1723728688899,0.05148842,144.24,144.22,3.4667]
[1723728689398,0.05148842,144.24,144.21,0.04539545]
[1723728689593,0.05148842,144.24,144.23,3.4665]
[1723728690094,3.4647,144.31,144.28,3.4653]
[1723728690286,1.3374,144.32,144.22,1.2619]
[1723728690486,2.5551,144.33,144.31,3.4644]
[1723728690691,2.5551,144.33,144.24,49.82]
[1723728690692,1.2992,144.33,144.24,49.82]
[1723728691198,1.2992,144.33,144.24,53.20384188]
[1723728691596,6.28,144.36,144.27,49.82]
[1723728691798,1.3374,144.37,144.27,59.54295813]
[1723728691996,0.04565164,144.3,144.27,0.04475114]
[1723728692194,0.04565164,144.3,144.29,3.465]
[1723728692789,1.3374,144.37,144.3,3.4647]
[1723728692987,1.3374,144.37,144.26,49.82]
[1723728693392,1.3374,144.37,144.26,53.26850291]
[1723728693698,0.05257966,144.31,144.28,0.05318052]
[1723728693903,3.4635,144.36,144.28,0.05318052]
[1723728694094,1.2992,144.38,144.29,49.82]
[1723728694493,4.7622,144.38,144.29,49.82]
[1723728694689,1.2992,144.38,144.29,49.82]
[1723728694901,3.4633,144.37,144.33,3.4639]
[1723728695093,1.2992,144.38,144.29,49.82]
[1723728695496,3.4632,144.37,144.34,3.4638]
[1723728695694,0.0519999,144.35,144.34,3.4638]
[1723728695891,3.5155999,144.35,144.32,3.51395626]
[1723728696101,3.5155999,144.35,144.32,0.04975626]
[1723728696395,0.0519999,144.35,144.32,0.04975626]
[1723728696994,49.8719999,144.35,144.32,0.04975626]
[1723728697199,1.3335,144.34,144.32,0.04975626]
[1723728697399,6.9633725,144.33,144.32,0.04975626]
[1723728697998,3.4652,144.29,144.26,3.4657]
[1723728698199,3.4652,144.29,144.22,57.3619]
[1723728698200,53.3192725,144.33,144.22,57.3619]
[1723728698399,49.82,144.31,144.2,1.2592]
[1723728698599,3.4656,144.27,144.2,4.69661336]
[1723728698804,7.5766,144.3,144.2,4.69661336]
[1723728699004,7.5766,144.3,144.23,3.4665]
[1723728699202,49.82,144.29,144.18,7.5851]
[1723728699394,6.28,144.28,144.14,51.0792]
[1723728699594,1.2966,144.3,144.17,49.82]
[1723728699595,3.4656,144.27,144.17,49.82]
[1723728699804,0.05077912,144.26,144.24,0.04960062]
[1723728700307,0.05077912,144.26,144.24,3.51570062]
[1723728700600,3.51657912,144.26,144.23,3.4663]
[1723728700905,3.51657912,144.26,144.19,49.82]
[1723728700906,0.05077912,144.26,144.19,49.82]
[1723728701100,0.05077912,144.26,144.22,3.4667]
[1723728701300,0.05077912,144.26,144.17,49.82]
[1723728701505,6.28,144.28,144.24,0.05016173]
[1723728701702,3.4658,144.26,144.24,0.05016173]
[1723728701901,6.28,144.28,144.24,0.05016173]
[1723728702097,1.2966,144.3,144.26,3.4656]
[1723728702302,0.0446044,144.23,144.22,49.82]
[1723728702601,0.0446044,144.23,144.22,3.4667]
[1723728702798,8.9233,144.34,144.22,49.82]
[1723728702998,6.28,144.34,144.27,0.0475867]
[1723728703405,1.2328,144.36,144.27,0.0475867]
[1723728703709,3.464,144.34,144.27,0.0475867]
[1723728703905,1.2328,144.36,144.27,3.49174729]
[1723728704226,0.05285725,144.33,144.32,3.4641]
[1723728707203,49.82,144.43,144.37,3.463]
[1723728707399,53.2247124,144.43,144.37,3.463]
[1723728707807,53.2247124,144.43,144.31,49.82]
[1723728707808,3.4626,144.4,144.31,49.82]
[1723728708007,49.82,144.43,144.31,49.82]
[1723728708210,2.6692,144.44,144.35,49.82]
[1723728708408,6.1308,144.44,144.4,3.4622]
[1723728708601,0.04975616,144.38,144.35,49.87188296]
[1723728709013,3.4614,144.45,144.35,49.87188296]
[1723728709316,1.3374,144.47,144.38,49.82]
[1723728709513,1.3374,144.47,144.44,3.4612]
[1723728709710,1.3374,144.47,144.39,3.51953179]
[1723728709908,1.3374,144.47,144.41,49.82]
[1723728710116,2.6692,144.49,144.41,49.82]
[1723728710406,6.922,144.51,144.41,49.82]
[1723728710609,3.4604,144.49,144.41,53.21520709]
[1723728711011,0.05333605,144.45,144.44,3.4614]
[1723728711210,8.2594,144.52,144.43,49.87104502]
[1723728711611,11.719,144.52,144.49,3.4602]
[1723728712012,3.53152903,144.54,144.41,4.74430709]
[1723728712013,2.6536,144.55,144.48,3.4605]
[1723728712217,6.28,144.58,144.47,6.28]
[1723728712406,6.28,144.58,144.48,49.82]
[1723728712814,0.05235425,144.53,144.5,0.05122154]
[1723728713109,0.05235425,144.53,144.52,3.4595]
[1723728713510,1.2837,144.6,144.51,49.82]
[1723728713905,4.7415,144.6,144.51,49.82]
[1723728714217,1.2837,144.6,144.53,49.82]
[1723728714420,1.2837,144.6,144.57,3.4582]
[1723728715005,0.04786798,144.58,144.55,0.04438074]
[1723728715616,0.04786798,144.58,144.57,3.4583]
[1723728718719,1.2852,144.65,144.6,3.4575]
[1723728719025,1.3418,144.67,144.6,49.82]
[1723728719316,1.3317,144.71,144.6,49.82]
[1723728719519,1.3317,144.71,144.6,53.20439726]
[1723728720113,51.1517,144.71,144.59,6.28]
[1723728720417,51.1517,144.71,144.58,56.04]
[1723728720621,0.05212426,144.67,144.64,0.04615599]
[1723728722117,0.05212426,144.67,144.66,3.4562]
[1723728722520,0.05212426,144.67,144.64,0.04615599]
[1723728723424,3.4564,144.65,144.64,0.04615599]
[1723728724017,3.4567,144.64,144.55,53.23894227]
[1723728724223,6.27212426,144.67,144.55,53.23894227]
[1723728724420,7.5517,144.71,144.6,49.82]
[1723728724621,1.3317,144.71,144.62,49.82]
[1723728725030,3.4555,144.69,144.62,49.82]
[1723728725228,3.4555,144.69,144.66,3.456]
[1723728725419,1.3317,144.71,144.66,3.456]
[1723728725618,0.04611475,144.68,144.67,3.4559]
[1723728727030,0.04611475,144.68,144.66,3.456]
[1723728727235,0.04611475,144.68,144.65,0.04402633]
[1723728727931,0.04611475,144.68,144.58,49.82]
[1723728728133,49.82,144.67,144.55,56.04]
[1723728728324,53.25542799,144.67,144.55,56.04]
[1723728728720,53.25542799,144.67,144.57,3.4582]
[1723728728926,3.4572,144.62,144.55,56.04]
[1723728729124,53.25542799,144.67,144.55,56.04]
[1723728729325,53.25542799,144.67,144.58,3.4579]
[1723728729529,1.2765,144.66,144.58,3.4579]
[1723728729834,0.04409353,144.63,144.61,0.0476231]
[1723728730032,3.4571,144.62,144.61,0.0476231]
[1723728730233,0.04409353,144.63,144.52,2.5954]
[1723728730234,6.26409353,144.63,144.52,1.3123]
[1723728730624,0.04409353,144.63,144.56,49.82]
[1723728730933,1.3112,144.65,144.56,49.82]
[1723728731523,1.3112,144.65,144.59,3.50751512]
[1723728731729,0.04883117,144.62,144.59,0.04981512]
[1723728732635,3.4574,144.61,144.59,0.04981512]
[1723728732932,0.04883117,144.62,144.59,0.04981512]
[1723728733127,3.4576,144.6,144.59,0.04981512]
[1723728733528,0.04883117,144.62,144.59,0.04981512]
[1723728734034,3.4576,144.6,144.59,0.04981512]
[1723728735632,0.04883117,144.62,144.59,0.04981512]
[1723728736037,0.04883117,144.62,144.61,3.4574]
[1723728737243,0.04883117,144.62,144.59,0.04981512]
[1723728737532,0.04883117,144.62,144.6,3.4575]
[1723728738533,0.04883117,144.62,144.59,0.04981512]
[1723728739039,3.4576,144.6,144.59,0.04981512]
[1723728739236,1.2933,144.61,144.52,56.04]
[1723728740342,6.00994312,144.66,144.55,49.82]
[1723728740542,0.047762,144.58,144.57,53.2783]
[1723728741040,6.00994312,144.66,144.57,49.82]
[1723728741236,3.4568,144.64,144.61,3.4572]
[1723728741543,6.00994312,144.66,144.57,49.82]
[1723728742033,2.5151,144.66,144.57,49.82]
[1723728742235,1.2337,144.69,144.6,49.82]
[1723728742439,2.5821,144.69,144.6,49.82]
[1723728742633,0.04744616,144.63,144.6,49.86809462]
[1723728742837,0.04744616,144.63,144.62,3.4571]
[1723728743137,0.04744616,144.63,144.62,53.2771]
[1723728743438,2.5821,144.69,144.62,49.82]
[1723728743932,0.0464905,144.64,144.58,6.22]
[1723728744245,0.0464905,144.64,144.61,0.04967838]
[1723728744544,3.4572,144.62,144.61,0.04967838]
[1723728744743,1.3628,144.65,144.61,0.04967838]
[1723728745041,1.3628,144.65,144.55,49.82]
[1723728745239,7.5828,144.65,144.55,49.82]
[1723728745538,3.4583,144.58,144.55,3.4587]
[1723728745743,0.05071557,144.63,144.52,56.04]
[1723728745939,3.4581,144.58,144.52,56.04]
[1723728746144,0.05071557,144.63,144.52,56.04]
[1723728746340,49.82,144.63,144.5,51.1786]
[1723728746644,49.82,144.63,144.55,0.04963185]
[1723728747042,0.052245,144.59,144.56,3.4585]
[1723728747243,0.052245,144.59,144.55,0.04963185]
[1723728747645,0.052245,144.59,144.5,49.82]
[1723728747850,0.052245,144.59,144.56,0.04675069]
[1723728748146,3.4583,144.57,144.56,0.04675069]
[1723728748448,3.477898,144.58,144.5,49.82]
[1723728748645,3.4592,144.54,144.5,3.4599]
[1723728749344,3.41530483,144.56,144.48,3.4603]
[1723728749550,1.2777,144.56,144.51,0.05327674]
[1723728749841,0.04850622,144.53,144.52,3.4595]
[1723728750644,232.921,144.65,144.52,49.82]
[1723728750837,8.8271,144.63,144.55,49.82]
[1723728751242,2.5271,144.63,144.55,49.82]
[1723728751941,3.4573,144.62,144.55,49.82]
[1723728752148,0.05020551,144.6,144.58,0.04775847]
[1723728752446,3.458,144.59,144.58,0.04775847]
[1723728752642,0.05020551,144.6,144.47,49.82]
[1723728752849,49.82,144.58,144.49,3.4602]
[1723728753148,49.82,144.58,144.45,59.51376561]
[1723728753352,13.2151,144.61,144.43,49.82]
[1723728753353,49.82,144.56,144.43,49.82]
[1723728753652,8.9427,144.55,144.43,49.82]
[1723728754155,3.46,144.5,144.48,0.04566222]
[1723728754644,0.04624932,144.51,144.48,0.04566222]
[1723728755448,3.50624932,144.51,144.48,0.04566222]
[1723728755753,0.04624932,144.51,144.48,0.04566222]
[1723728756651,3.4602,144.49,144.48,0.04566222]
[1723728756846,56.12,144.49,144.37,49.82]
[1723728757054,56.12,144.49,144.35,3.46231034]
[1723728757552,49.82,144.46,144.34,56.12]
[1723728757761,1.3242,144.45,144.33,2.6313]
[1723728757953,49.82,144.41,144.3,6.3]
[1723728758249,6.3,144.4,144.29,53.3090216]
[1723728758451,2.6837,144.45,144.32,49.82]
[1723728758653,3.4618,144.43,144.37,49.82]
[1723728758856,0.04401156,144.41,144.39,0.04521748]
[1723728759849,3.4624,144.4,144.39,0.04521748]
[1723728760753,0.04401156,144.41,144.39,0.04521748]
[1723728761859,3.4624,144.4,144.39,0.04521748]
[1723728763567,3.4624,144.4,144.26,1.3075]
[1723728763568,3.4642,144.33,144.27,49.82]
[1723728763861,49.82,144.38,144.27,49.82]
[1723728764063,3.4642,144.33,144.29,3.4649]
[1723728764454,1.3096,144.36,144.29,3.4649]
[1723728764651,3.4642,144.33,144.31,0.04650937]
[1723728764854,0.04518808,144.34,144.31,0.04650937]
[1723728765666,3.4643,144.32,144.31,0.04650937]
[1723728766765,6.34518808,144.34,144.31,0.04650937]
[1723728766766,3.4642,144.33,144.31,0.04650937]
[1723728767464,0.04518808,144.34,144.31,0.04650937]
[1723728768165,1.3207,144.41,144.32,49.82]
[1723728768562,3.4631,144.38,144.32,49.82]
[1723728769360,1.3207,144.41,144.32,49.82]
[1723728769566,0.04483035,144.36,144.34,0.04715989]
[1723728770067,1.3207,144.41,144.34,0.04715989]
[1723728770864,49.82,144.4,144.34,0.04715989]
[1723728771064,0.0496246,144.39,144.34,0.04715989]
[1723728771261,3.44014368,144.38,144.34,0.04715989]
[1723728771463,3.4636,144.35,144.34,0.04715989]
[1723728772166,3.4634,144.36,144.34,0.04715989]
[1723728772557,3.4633,144.37,144.34,0.04715989]
[1723728772959,0.05041185,144.36,144.34,0.04715989]
[1723728773467,0.05041185,144.36,144.34,49.86715989]
[1723728773664,6.3,144.41,144.34,49.86715989]
[1723728773861,1.2921,144.44,144.34,49.86715989]
[1723728774170,1.2921,144.44,144.34,0.04715989]
[1723728774469,49.82,144.43,144.34,0.04715989]
[1723728774662,3.4635,144.36,144.34,0.04715989]
[1723728774869,49.82,144.43,144.29,53.22756389]